fUSD/lending_fUSD_20240429
["ID","MTS","AMOUNT","RATE_DAILY","PERIOD"]
[324896216,1714403442429,-1427.06,0.00012321,2]
[324896218,1714403442438,-956.26,0.00012321,2]
[324896220,1714403442447,-567.04,0.00012321,2]
[324896222,1714403442456,-506.55275774,0.00012321,2]
[324896224,1714403442466,-503.4351639,0.00012321,2]
[324896226,1714403442475,-500.0,0.00012321,2]
[324896228,1714403442484,-501.3558545,0.00012321,2]
[324896230,1714403442493,-500.0,0.00012321,2]
[324896232,1714403442502,-503.9263121,0.00012321,2]
[324896234,1714403442511,-542.89107465,0.00012321,2]
[324896237,1714403442521,-543.5,0.00012321,2]
[324896239,1714403442531,-500.0,0.00012321,2]
[324896241,1714403442540,-504.03358767,0.00012321,2]
[324896242,1714403442550,-501.98961974,0.00012321,2]
[324896244,1714403442559,-500.0,0.00012321,2]
[324896247,1714403442568,-500.0,0.00012321,2]
[324896248,1714403442577,-1057.43,0.00012321,2]
[324896251,1714403442587,-1689.84,0.00012321,2]
[324896252,1714403442596,-304.86986351,0.00012321,2]
[324896255,1714403442606,-501.8169547,0.00012321,2]
[324896256,1714403442617,-500.0,0.00012321,2]
[324896258,1714403442627,-502.71609866,0.00012321,2]
[324896260,1714403442637,-500.0,0.00012321,2]
[324896262,1714403442646,-6518.37,0.00012321,2]
[324896265,1714403442656,-500.0,0.00012321,2]
[324896266,1714403442665,-500.75289429,0.00012321,2]
[324896268,1714403442675,-500.0,0.00012321,2]
[324896271,1714403442684,-500.0,0.00012321,2]
[324896272,1714403442693,-500.0,0.00012321,2]
[324896275,1714403442703,-500.0,0.00012321,2]
[324896277,1714403442712,-500.0,0.00012321,2]
[324896278,1714403442722,-500.0,0.00012321,2]
[324896280,1714403442731,-500.0,0.00012321,2]
[324896283,1714403442741,-500.0,0.00012321,2]
[324896284,1714403442750,-500.0,0.00012321,2]
[324896287,1714403442760,-500.0,0.00012321,2]
[324896289,1714403442769,-500.0,0.00012321,2]
[324896291,1714403442779,-500.0,0.00012321,2]
[324896293,1714403442788,-281.32000037,0.00012321,2]
[324896295,1714403442796,-500.0,0.00012321,2]
[324896296,1714403442806,-4226.68,0.00012321,2]
[324896300,1714403442815,-500.0,0.00012321,2]
[324896302,1714403442825,-500.0,0.00012321,2]
[324896304,1714403442834,-969.91,0.00012321,2]
[324896306,1714403442844,-1116.0,0.00012321,2]
[324896307,1714403442853,-737.61,0.00012321,2]
[324896309,1714403442864,-870.24,0.00012321,2]
[324896312,1714403442873,-635.18,0.00012321,2]
[324896313,1714403442883,-500.0,0.00012321,2]
[324896315,1714403442892,-500.0,0.00012321,2]
[324896317,1714403442902,-500.0,0.00012321,2]
[324896319,1714403442912,-500.0,0.00012321,2]
[324896321,1714403442922,-500.0,0.00012321,2]
[324896323,1714403442931,-924.12,0.00012321,2]
[324896325,1714403442940,-500.0,0.00012321,2]
[324896328,1714403442950,-500.0,0.00012321,2]
[324896330,1714403442959,-9054.67,0.00012321,2]
[324896333,1714403442970,-823.63,0.00012321,2]
[324896334,1714403442983,-500.0,0.00012321,2]
[324896336,1714403442993,-994.65,0.00012321,2]
[324896338,1714403443003,-500.0,0.00012321,2]
[324896341,1714403443013,-500.0,0.00012321,2]
[324896344,1714403443024,-500.0,0.00012321,2]
[324896346,1714403443032,-503.84707921,0.00012321,2]
[324896348,1714403443042,-500.0,0.00012321,2]
[324896350,1714403443052,-993.4,0.00012321,2]
[324896353,1714403443063,-1014.49,0.00012321,2]
[324896356,1714403443072,-500.0,0.00012321,2]
[324896359,1714403443082,-536.9,0.00012321,2]
[324896361,1714403443091,-500.0,0.00012321,2]
[324896363,1714403443100,-500.0,0.00012321,2]
[324896364,1714403443110,-1510.52,0.00012321,2]
[324896367,1714403443121,-500.0,0.00012321,2]
[324896368,1714403443130,-507.73,0.00012321,2]
[324896370,1714403443140,-1281.18,0.00012321,2]
[324896372,1714403443149,-500.0,0.00012321,2]
[324896375,1714403443159,-500.0,0.00012321,2]
[324896376,1714403443168,-604.87,0.00012321,2]
[324896379,1714403443177,-500.0,0.00012321,2]
[324896381,1714403443187,-500.0,0.00012321,2]
[324896382,1714403443196,-500.86,0.00012321,2]
[324896384,1714403443206,-503.36324623,0.00012321,2]
[324896387,1714403443216,-884.52,0.00012321,2]
[324896388,1714403443225,-500.0,0.00012321,2]
[324896391,1714403443235,-500.0,0.00012321,2]
[324896405,1714403443358,-849.86,0.00012321,2]
[324896408,1714403443384,-500.0,0.00012321,2]
[324896410,1714403443393,-984.67,0.00012321,2]
[324896412,1714403443403,-628.04,0.00012321,2]
[324896414,1714403443412,-500.0,0.00012321,2]
[324896416,1714403443421,-500.0,0.00012321,2]
[324896418,1714403443431,-527.3,0.00012321,2]
[324896420,1714403443440,-1607.14,0.00012321,2]
[324896422,1714403443449,-500.0,0.00012321,2]
[324896424,1714403443458,-517.5,0.00012321,2]
[324896426,1714403443467,-840.42,0.00012321,2]
[324896428,1714403443476,-500.0,0.00012321,2]
[324896430,1714403443486,-500.0,0.00012321,2]
[324896432,1714403443495,-500.0,0.00012321,2]
[324896433,1714403443504,-638.68,0.00012321,2]
[324896434,1714403443514,-500.0,0.00012321,2]
[324896435,1714403443523,-500.0,0.00012321,2]
[324896436,1714403443534,-500.0,0.00012321,2]
[324896437,1714403443543,-716.39,0.00012321,2]
[324896438,1714403443552,-500.0,0.00012321,2]
[324896439,1714403443562,-500.0,0.00012321,2]
[324896440,1714403443572,-500.0,0.00012321,2]
[324896441,1714403443581,-520.09,0.00012321,2]
[324896443,1714403443590,-881.05,0.00012321,2]
[324896445,1714403443600,-500.0,0.00012321,2]
[324896447,1714403443609,-500.0,0.00012321,2]
[324896449,1714403443621,-500.0,0.00012321,2]
[324896451,1714403443630,-1026.05,0.00012321,2]
[324896453,1714403443639,-500.0,0.00012321,2]
[324896455,1714403443648,-500.0,0.00012321,2]
[324896457,1714403443657,-1218.75,0.00012321,2]
[324896459,1714403443666,-850.41,0.00012321,2]
[324896461,1714403443675,-500.0,0.00012321,2]
[324896463,1714403443684,-500.0,0.00012321,2]
[324896465,1714403443694,-870.68,0.00012321,2]
[324896467,1714403443703,-500.0,0.00012321,2]
[324896469,1714403443713,-500.0,0.00012321,2]
[324896471,1714403443723,-1317.16,0.00012321,2]
[324896473,1714403443732,-707.58,0.00012321,2]
[324896475,1714403443742,-500.0,0.00012321,2]
[324896477,1714403443751,-615.64,0.00012321,2]
[324896478,1714403443760,-535.83,0.00012321,2]
[324896480,1714403443770,-785.03,0.00012321,2]
[324896482,1714403443780,-500.0,0.00012321,2]
[324896484,1714403443790,-2442.61,0.00012321,2]
[324896486,1714403443799,-500.0,0.00012321,2]
[324896488,1714403443809,-837.98,0.00012321,2]
[324896490,1714403443818,-6388.0,0.00012321,2]
[324896492,1714403443827,-500.0,0.00012321,2]
[324896494,1714403443838,-500.0,0.00012321,2]
[324896496,1714403443847,-840.44,0.00012321,2]
[324896498,1714403443857,-907.95,0.00012321,2]
[324896500,1714403443869,-1423.15,0.00012321,2]
[324896501,1714403443878,-500.0,0.00012321,2]
[324896503,1714403443887,-500.0,0.00012321,2]
[324896505,1714403443897,-500.0,0.00012321,2]
[324896508,1714403443907,-576.65,0.00012321,2]
[324896510,1714403443916,-589.65,0.00012321,2]
[324896512,1714403443926,-535.05,0.00012321,2]
[324896514,1714403443936,-2660.92,0.00012321,2]
[324896515,1714403443946,-500.0,0.00012321,2]
[324896519,1714403443971,-500.0,0.00012321,2]
[324896521,1714403443981,-881.17,0.00012321,2]
[324896523,1714403443990,-500.0,0.00012321,2]
[324896525,1714403444000,-2380.37,0.00012321,2]
[324896527,1714403444011,-1352.97,0.00012321,2]
[324896529,1714403444021,-500.0,0.00012321,2]
[324896531,1714403444030,-664.22,0.00012321,2]
[324896533,1714403444039,-500.0,0.00012321,2]
[324896535,1714403444051,-1079.67,0.00012321,2]
[324896537,1714403444060,-500.0,0.00012321,2]
[324896539,1714403444070,-500.0,0.00012321,2]
[324896541,1714403444079,-797.4,0.00012321,2]
[324896543,1714403444089,-500.0,0.00012321,2]
[324896545,1714403444098,-500.0,0.00012321,2]
[324896547,1714403444107,-500.0,0.00012321,2]
[324896549,1714403444119,-500.0,0.00012321,2]
[324896551,1714403444128,-843.94,0.00012321,2]
[324896553,1714403444138,-500.0,0.00012321,2]
[324896555,1714403444148,-500.0,0.00012321,2]
[324896557,1714403444158,-1466.11,0.00012321,2]
[324896559,1714403444168,-1356.02,0.00012321,2]
[324896561,1714403444178,-500.0,0.00012321,2]
[324896563,1714403444187,-500.0,0.00012321,2]
[324896565,1714403444196,-500.0,0.00012321,2]
[324896567,1714403444205,-500.0,0.00012321,2]
[324896569,1714403444214,-553.9,0.00012321,2]
[324896571,1714403444223,-500.0,0.00012321,2]
[324896573,1714403444232,-961.38,0.00012321,2]
[324896575,1714403444241,-1012.69,0.00012321,2]
[324896576,1714403444251,-500.0,0.00012321,2]
[324896578,1714403444260,-500.0,0.00012321,2]
[324896580,1714403444269,-510.53,0.00012321,2]
[324896582,1714403444278,-2260.0,0.00012321,2]
[324896584,1714403444287,-500.0,0.00012321,2]
[324896586,1714403444296,-1149.87,0.00012321,2]
[324896588,1714403444305,-692.58,0.00012321,2]
[324896590,1714403444315,-500.0,0.00012321,2]
[324896592,1714403444324,-630.6,0.00012321,2]
[324896595,1714403444334,-500.0,0.00012321,2]
[324896597,1714403444343,-500.0,0.00012321,2]
[324896598,1714403444352,-500.0,0.00012321,2]
[324896600,1714403444362,-828.45,0.00012321,2]
[324896602,1714403444373,-500.0,0.00012321,2]
[324896604,1714403444383,-818.16,0.00012321,2]
[324896607,1714403444392,-1568.2,0.00012321,2]
[324896609,1714403444403,-1410.54,0.00012321,2]
[324896610,1714403444412,-561.51,0.00012321,2]
[324896612,1714403444422,-500.0,0.00012321,2]
[324896614,1714403444431,-500.0,0.00012321,2]
[324896616,1714403444441,-1011.32,0.00012321,2]
[324896619,1714403444450,-1308.07,0.00012321,2]
[324896621,1714403444460,-1894.29,0.00012321,2]
[324896623,1714403444469,-500.0,0.00012321,2]
[324896625,1714403444478,-197.16050136,0.00012322,7]
[324896627,1714403444487,-325.21213573,0.00012322,2]
[324896629,1714403444496,-500.0,0.00012322,2]
[324896631,1714403444506,-500.0,0.00012322,2]
[324896633,1714403444515,-500.0,0.00012322,2]
[324896634,1714403444524,-500.0,0.00012322,2]
[324896637,1714403444534,-500.0,0.00012322,2]
[324896639,1714403444544,-500.0,0.00012322,2]
[324896641,1714403444553,-500.0,0.00012322,2]
[324896643,1714403444562,-500.0,0.00012322,2]
[324896644,1714403444571,-420.93,0.00012322,2]
[324896647,1714403444581,-588.97037649,0.00012322,2]
[324896649,1714403444591,-500.0,0.00012322,2]
[324896650,1714403444600,-500.0,0.00012322,2]
[324896652,1714403444609,-500.0,0.00012322,2]
[324896655,1714403444620,-500.0,0.00012322,2]
[324896656,1714403444630,-500.0,0.00012322,2]
[324896658,1714403444639,-500.0,0.00012322,2]
[324896659,1714403444648,-500.0,0.00012322,2]
[324896660,1714403444657,-500.0,0.00012322,2]
[324896661,1714403444667,-646.24,0.00012322,2]
[324896662,1714403444676,-500.0,0.00012322,2]
[324896663,1714403444686,-500.0,0.00012322,2]
[324896664,1714403444695,-500.0,0.00012322,2]
[324896665,1714403444704,-318.0,0.00012322,2]
[324896667,1714403444713,-500.0,0.00012322,2]
[324896669,1714403444723,-542.65,0.00012322,2]
[324896671,1714403444732,-500.0,0.00012322,2]
[324896673,1714403444743,-248.1000826,0.00012322,2]
[324896675,1714403444753,-500.0,0.00012322,2]
[324896678,1714403444763,-500.0,0.00012322,2]
[324896680,1714403444772,-500.0,0.00012322,2]
[324896681,1714403444785,-246.8438377,0.00012322,2]
[324896683,1714403444794,-500.0,0.00012322,2]
[324896685,1714403444803,-500.0,0.00012322,2]
[324896687,1714403444812,-500.0,0.00012322,2]
[324896689,1714403444823,-500.0,0.00012322,2]
[324896691,1714403444833,-500.0,0.00012322,2]
[324896693,1714403444843,-500.0,0.00012322,2]
[324896695,1714403444852,-500.0,0.00012322,2]
[324896698,1714403444862,-500.0,0.00012322,2]
[324896700,1714403444872,-500.0,0.00012322,2]
[324896702,1714403444881,-500.0,0.00012322,2]
[324896703,1714403444891,-500.0,0.00012322,2]
[324896706,1714403444901,-500.0,0.00012322,2]
[324896707,1714403444911,-500.0,0.00012322,2]
[324896709,1714403444920,-500.0,0.00012322,2]
[324896711,1714403444930,-500.0,0.00012322,2]
[324896714,1714403444939,-500.0,0.00012322,2]
[324896715,1714403444948,-500.0,0.00012322,2]
[324896717,1714403444958,-500.0,0.00012322,2]
[324896719,1714403444971,-500.0,0.00012322,2]
[324896721,1714403444980,-526.54,0.00012322,2]
[324896724,1714403444990,-288.65,0.00012322,2]
[324896726,1714403444999,-500.0,0.00012322,2]
[324896728,1714403445009,-500.0,0.00012322,2]
[324896730,1714403445019,-500.0,0.00012322,2]
[324896731,1714403445028,-500.0,0.00012322,2]
[324896734,1714403445038,-306.64,0.00012322,2]
[324896736,1714403445049,-500.0,0.00012322,2]
[324896737,1714403445060,-701.08,0.00012322,2]
[324896739,1714403445069,-500.87,0.00012322,2]
[324896741,1714403445078,-552.63,0.00012322,2]
[324896743,1714403445088,-500.0,0.00012322,2]
[324896745,1714403445097,-597.36,0.00012322,2]
[324896747,1714403445106,-500.0,0.00012322,2]
[324896750,1714403445117,-740.97,0.00012322,2]
[324896752,1714403445126,-500.0,0.00012322,2]
[324896754,1714403445136,-500.0,0.00012322,2]
[324896755,1714403445146,-500.0,0.00012322,2]
[324896757,1714403445155,-500.0,0.00012322,2]
[324896759,1714403445164,-933.78,0.00012322,2]
[324896762,1714403445174,-500.0,0.00012322,2]
[324896764,1714403445183,-500.0,0.00012322,2]
[324896766,1714403445192,-967.57,0.00012322,2]
[324896768,1714403445201,-500.0,0.00012322,2]
[324896770,1714403445211,-500.0,0.00012322,2]
[324896772,1714403445220,-500.0,0.00012322,2]
[324896774,1714403445229,-500.0,0.00012322,2]
[324896775,1714403445238,-500.0,0.00012322,2]
[324896777,1714403445247,-500.0,0.00012322,2]
[324896779,1714403445257,-500.0,0.00012322,2]
[324896782,1714403445267,-500.0,0.00012322,2]
[324896783,1714403445276,-500.0,0.00012322,2]
[324896786,1714403445286,-849.61,0.00012322,2]
[324896787,1714403445295,-500.0,0.00012322,2]
[324896790,1714403445305,-500.0,0.00012322,2]
[324896791,1714403445314,-500.0,0.00012322,2]
[324896794,1714403445323,-500.0,0.00012322,2]
[324896796,1714403445333,-500.0,0.00012322,2]
[324896798,1714403445342,-500.0,0.00012322,2]
[324896800,1714403445351,-500.0,0.00012322,2]
[324896801,1714403445361,-500.0,0.00012322,2]
[324896803,1714403445374,-693.94,0.00012322,2]
[324896805,1714403445382,-500.0,0.00012322,2]
[324896807,1714403445391,-500.0,0.00012322,2]
[324896809,1714403445400,-500.0,0.00012322,2]
[324896811,1714403445409,-500.0,0.00012322,2]
[324896813,1714403445417,-500.0,0.00012322,2]
[324896815,1714403445426,-500.0,0.00012322,2]
[324896817,1714403445435,-847.39,0.00012322,2]
[324896820,1714403445444,-596.9,0.00012322,2]
[324896822,1714403445454,-500.0,0.00012322,2]
[324896823,1714403445464,-829.49,0.00012322,2]
[324896826,1714403445473,-500.0,0.00012322,2]
[324896827,1714403445482,-500.0,0.00012322,2]
[324896830,1714403445491,-500.0,0.00012322,2]
[324896832,1714403445501,-500.0,0.00012322,2]
[324896834,1714403445510,-500.0,0.00012322,2]
[324896836,1714403445519,-500.0,0.00012322,2]
[324896838,1714403445528,-500.0,0.00012322,2]
[324896839,1714403445537,-500.0,0.00012322,2]
[324896841,1714403445546,-500.0,0.00012322,2]
[324896843,1714403445556,-500.0,0.00012322,2]
[324896845,1714403445565,-500.0,0.00012322,2]
[324896847,1714403445575,-500.0,0.00012322,2]
[324896849,1714403445583,-500.0,0.00012322,2]
[324896851,1714403445593,-522.07,0.00012322,2]
[324896854,1714403445602,-500.0,0.00012322,2]
[324896855,1714403445611,-977.85,0.00012322,2]
[324896858,1714403445623,-500.0,0.00012322,2]
[324896859,1714403445631,-500.0,0.00012322,2]
[324896861,1714403445640,-500.0,0.00012322,2]
[324896864,1714403445649,-500.0,0.00012322,2]
[324896865,1714403445658,-986.25,0.00012322,2]
[324896868,1714403445668,-646.37,0.00012322,2]
[324896869,1714403445677,-500.0,0.00012322,2]
[324896870,1714403445687,-500.0,0.00012322,2]
[324896871,1714403445696,-611.45,0.00012322,2]
[324896872,1714403445706,-500.0,0.00012322,2]
[324896873,1714403445715,-500.0,0.00012322,2]
[324896874,1714403445724,-500.0,0.00012322,2]
[324896875,1714403445733,-150.08846795,0.00012322,2]
[324896877,1714403445742,-500.0,0.00012322,2]
[324896879,1714403445751,-500.0,0.00012322,2]
[324896881,1714403445760,-500.0,0.00012322,2]
[324896884,1714403445770,-500.0,0.00012322,2]
[324896886,1714403445779,-500.0,0.00012322,2]
[324896888,1714403445787,-500.0,0.00012322,2]
[324896890,1714403445796,-500.0,0.00012322,2]
[324896892,1714403445804,-500.0,0.00012322,2]
[324896894,1714403445814,-1009.7,0.00012322,2]
[324896895,1714403445823,-500.0,0.00012322,2]
[324896898,1714403445832,-500.0,0.00012322,2]
[324896901,1714403445841,-500.0,0.00012322,2]
[324896904,1714403445851,-530.48,0.00012322,2]
[324896905,1714403445860,-500.0,0.00012322,2]
[324896922,1714403446003,-500.0,0.00012322,2]
[324896924,1714403446015,-626.8368507,0.00012322,2]
[324896926,1714403446024,-500.0,0.00012322,2]
[324896928,1714403446033,-500.0,0.00012322,2]
[324896930,1714403446043,-500.0,0.00012322,2]
[324896932,1714403446052,-500.0,0.00012322,2]
[324896934,1714403446063,-863.88,0.00012322,2]
[324896936,1714403446073,-500.0,0.00012322,2]
[324896938,1714403446082,-500.0,0.00012322,2]
[324896940,1714403446091,-500.0,0.00012322,2]
[324896942,1714403446101,-500.0,0.00012322,2]
[324896944,1714403446110,-500.0,0.00012322,2]
[324896946,1714403446121,-500.0,0.00012322,2]
[324896948,1714403446130,-500.0,0.00012322,2]
[324896950,1714403446139,-804.99,0.00012322,2]
[324896952,1714403446148,-500.0,0.00012322,2]
[324896954,1714403446158,-500.0,0.00012322,2]
[324896956,1714403446167,-500.0,0.00012322,2]
[324896958,1714403446176,-500.0,0.00012322,2]
[324896960,1714403446186,-500.0,0.00012322,2]
[324896962,1714403446195,-998.88,0.00012322,2]
[324896963,1714403446205,-660.79,0.00012322,2]
[324896965,1714403446214,-500.0,0.00012322,2]
[324896966,1714403446223,-1047.15,0.00012322,2]
[324896968,1714403446232,-500.0,0.00012322,2]
[324896969,1714403446241,-535.91,0.00012322,2]
[324896971,1714403446251,-500.0,0.00012322,2]
[324896972,1714403446260,-4242.74,0.00012322,2]
[324896974,1714403446269,-500.0,0.00012322,2]
[324896975,1714403446279,-500.0,0.00012322,2]
[324896977,1714403446288,-1137.34,0.00012322,2]
[324896978,1714403446296,-500.0,0.00012322,2]
[324896980,1714403446306,-500.0,0.00012322,2]
[324896982,1714403446315,-859.13,0.00012322,2]
[324896983,1714403446324,-552.37,0.00012322,2]
[324896985,1714403446333,-500.0,0.00012322,2]
[324896986,1714403446342,-1523.5,0.00012322,2]
[324896988,1714403446351,-601.86,0.00012322,2]
[324896990,1714403446360,-500.0,0.00012322,2]
[324896991,1714403446371,-819.0,0.00012322,2]
[324896993,1714403446380,-872.25,0.00012322,2]
[324896994,1714403446389,-500.0,0.00012322,2]
[324896996,1714403446399,-500.0,0.00012322,2]
[324896997,1714403446408,-1052.64,0.00012322,2]
[324896999,1714403446417,-500.0,0.00012322,2]
[324897001,1714403446426,-500.0,0.00012322,2]
[324897002,1714403446435,-500.0,0.00012322,2]
[324897004,1714403446445,-500.0,0.00012322,2]
[324897006,1714403446453,-500.0,0.00012322,2]
[324897007,1714403446463,-500.0,0.00012322,2]
[324897009,1714403446471,-500.0,0.00012322,2]
[324897011,1714403446481,-500.0,0.00012322,2]
[324897012,1714403446490,-534.16,0.00012322,2]
[324897014,1714403446500,-500.0,0.00012322,2]
[324897016,1714403446509,-500.0,0.00012322,2]
[324897017,1714403446519,-500.0,0.00012322,2]
[324897019,1714403446528,-500.0,0.00012322,2]
[324897020,1714403446537,-500.0,0.00012322,2]
[324897022,1714403446546,-662.98,0.00012322,2]
[324897024,1714403446555,-500.0,0.00012323,2]
[324897025,1714403446564,-500.0,0.00012323,2]
[324897027,1714403446574,-1283649.49312226,0.00012324,2]
[324897049,1714403446921,-1712.57125797,0.00012324,2]
[324897050,1714403446932,-1021.10512782,0.00012324,2]
[324897051,1714403446963,-1656.56021945,0.00012324,2]
[324897183,1714403448257,-500.0,0.00012047,2]
[324897185,1714403448267,-128.55,0.00012047,2]
[324897189,1714403448285,-371.45,0.00012047,2]
[324897191,1714403448295,-500.0,0.00012321,2]
[324897193,1714403448304,-500.0,0.00012321,2]
[324897194,1714403448313,-500.19879999,0.00012321,2]
[324897197,1714403448323,-28414.99051484,0.00012324,2]
[324897200,1714403448346,-18826.73068459,0.00012324,2]
[324897203,1714403448368,-155.0,0.0001005,2]
[324897205,1714403448377,-249.64145571,0.00012324,2]
[324897207,1714403448388,-616.38,0.00012324,2]
[324897210,1714403448400,-400.0,0.00012324,2]
[324897212,1714403448411,-900.0,0.00012324,2]
[324897237,1714403448638,-651.67241282,0.00012324,2]
[324897239,1714403448649,-359.45574608,0.00012324,2]
[324897241,1714403448660,-4617.46836026,0.00012324,2]
[324897243,1714403448671,-6209.65973997,0.00012324,2]
[324897245,1714403448683,-467.15416282,0.00012324,2]
[324897248,1714403448694,-991.10052887,0.00012324,2]
[324897250,1714403448706,-1075.2781331,0.00012324,2]
[324897252,1714403448717,-21790.75325997,0.00012324,2]
[324897254,1714403448729,-2559.80250213,0.00012324,2]
[324897256,1714403448740,-265.34402344,0.00012324,2]
[324897270,1714403448856,-14463.25249966,0.00012324,2]
[324897272,1714403448865,-298.84757904,0.00012324,2]
[324897273,1714403448878,-200.0,0.00012324,2]
[324897274,1714403448888,-173.8775067,0.00012337,2]
[324897275,1714403448897,-193.53761118,0.00012358,2]
[324897276,1714403448907,-908.0,0.00012396,2]
[324897277,1714403448917,-3947.85192813,0.00012423,2]
[324897278,1714403448927,-200.0,0.00012447,2]
[324897279,1714403448936,-173.8775067,0.00012449,2]
[324897280,1714403448946,-470.4090219,0.00012473,2]
[324897281,1714403448955,-150.0,0.00012483,2]
[324897283,1714403448965,-1044.48,0.00012483,2]
[324897285,1714403448976,-153.26,0.00012483,2]
[324897287,1714403448988,-171.54,0.00012483,2]
[324897289,1714403448997,-522.35,0.00012483,2]
[324897291,1714403449007,-304.68,0.00012483,2]
[324897293,1714403449017,-837.76,0.00012483,2]
[324897295,1714403449029,-287.16,0.00012483,2]
[324897297,1714403449039,-150.0,0.00012483,2]
[324897299,1714403449048,-522.35,0.00012483,2]
[324897301,1714403449058,-150.0,0.00012483,2]
[324897303,1714403449067,-150.0,0.00012483,2]
[324897305,1714403449077,-150.0,0.00012483,2]
[324897307,1714403449086,-150.0,0.00012483,2]
[324897309,1714403449095,-150.0,0.00012483,2]
[324897311,1714403449104,-162.94,0.00012483,2]
[324897313,1714403449114,-251.374,0.00012493,2]
[324897315,1714403449126,-210.0,0.00012493,2]
[324897317,1714403449136,-160.0,0.00012493,2]
[324897319,1714403449145,-161.792,0.00012493,2]
[324897321,1714403449154,-250.0,0.00012493,2]
[324897323,1714403449163,-257.421,0.00012493,2]
[324897324,1714403449172,-194.016,0.00012493,2]
[324897327,1714403449181,-200.0,0.00012493,2]
[324897329,1714403449191,-260.0,0.00012493,2]
[324897331,1714403449201,-272.461,0.00012493,2]
[324897332,1714403449211,-234.805,0.00012493,2]
[324897334,1714403449221,-275.0,0.00012493,2]
[324897336,1714403449230,-150.824,0.00012493,2]
[324897338,1714403449240,-187.9,0.00012493,2]
[324897340,1714403449249,-281.432,0.00012493,2]
[324897342,1714403449259,-265.043,0.00012493,2]
[324897345,1714403449269,-150.613,0.00012493,2]
[324897346,1714403449279,-254.971,0.00012493,2]
[324897348,1714403449288,-152.978,0.00012493,2]
[324897350,1714403449298,-211.899,0.00012493,2]
[324897353,1714403449308,-165.0,0.00012493,2]
[324897354,1714403449318,-2298.0,0.00012493,2]
[324897357,1714403449328,-462.0,0.00012493,2]
[324897359,1714403449337,-1395.0,0.00012493,2]
[324897360,1714403449347,-970.0,0.00012493,2]
[324897362,1714403449356,-1233.064,0.00012493,2]
[324897365,1714403449366,-542.0,0.00012493,2]
[324897366,1714403449377,-1257.0,0.00012493,2]
[324897369,1714403449387,-437.0,0.00012493,2]
[324897370,1714403449396,-208.0,0.00012493,2]
[324897372,1714403449406,-610.0,0.00012493,2]
[324897374,1714403449415,-808.0,0.00012493,2]
[324897376,1714403449424,-1860.0,0.00012493,2]
[324897378,1714403449434,-150.0,0.00012493,2]
[324897380,1714403449443,-1476.0,0.00012493,2]
[324897382,1714403449452,-3132.0,0.00012493,2]
[324897385,1714403449462,-420.0,0.00012493,2]
[324897386,1714403449471,-2448.0,0.00012493,2]
[324897388,1714403449480,-443.0,0.00012493,2]
[324897391,1714403449490,-215.0,0.00012493,2]